Cogmind - Beta 17 @@@ ROGUE MODE // 2026.07.24 @ 01:16:08 Player: Nerf Result: Destroyed by G-47 Trooper with Particle Gun Performance ------------- Evolutions (2) 1000 Regions Visited (6) 1200 Robots Destroyed (52) 260 Value Destroyed (1341) 1341 Prototype IDs (5) 100 Alien Tech Used (0) 0 Bonus (0) 0 TOTAL SCORE: 3901 Bonus ------- None Cogmind --------- Core Integrity 0/550 Matter 260/300 Energy 90/100 System Corruption 2% Temperature Cool (62) Movement Core (50) Location -8/Storage Parts ------- > --- POWER (2) -------- (None) > --- PROPULSION (3) --- Cooled VTOL Module > --- UTILITY (4) ------ Visual Processing Unit Signal Interpreter Advanced Targeting Computer Hacking Suite > --- WEAPON (2) ------- Particle Gun > --- INVENTORY (5) ---- Compact Wheel Improved Heat Sink Improved Heat Sink Sensor Array System Shield Peak State ------------ > --- POWER ------------ Light Nuclear Core > --- PROPULSION ------- Titanium Leg Titanium Leg Cooled VTOL Module > --- UTILITY ---------- Visual Processing Unit Signal Interpreter Advanced Targeting Computer Hacking Suite > --- WEAPON ----------- Particle Gun Missile Launcher > --- INVENTORY -------- Improved Heat Sink Improved Heat Sink Sensor Array System Shield [Rating: 29] Favorites ----------- Power Ion Engine Engine Ion Engine Power Core Light Nuclear Core Propulsion Flight Unit Treads Light Treads Leg Titanium Leg Wheel Wheel Hover Unit Hover Unit Flight Unit Flight Unit Utility Visual Processing Unit Device Sensor Array Processor Visual Processing Unit Hackware Hacking Suite Weapon Small Laser Energy Gun Small Laser Energy Cannon Particle Cannon Ballistic Gun Gauss Rifle Ballistic Cannon Light Cannon Launcher Grenade Launcher Special Weapon Mining Laser Build | -11 -10 -10 -10 -9 -8 -8 ------- Run | Yrd Mat Min Exi Min Mat Sto Slots Evolved 4 | . . . . . 4 . Power 1 | . . . . . 1 . Propulsion 1 | . . . . . 1 . Utility 2 | . . . . . 2 . Weapon . | . . . . . . . Parts Attached 49 | 3 9 4 . . 17 16 Power 11 | 1 2 . . . 4 4 Engine 5 | 1 2 . . . . 2 Core 6 | . . . . . 4 2 Reactor . | . . . . . . . Propulsion 17 | 1 2 2 . . 7 5 Treads 1 | . . . . . . 1 Leg 2 | . . . . . . 2 Wheel 5 | 1 2 . . . 1 1 Hover 1 | . . . . . 1 . Flight 8 | . . 2 . . 5 1 Utility 11 | . 3 . . . 4 4 Device 7 | . 2 . . . 3 2 Storage . | . . . . . . . Processor 3 | . 1 . . . 1 1 Hackware 1 | . . . . . . 1 Protection . | . . . . . . . Artifact . | . . . . . . . Weapon 10 | 1 2 2 . . 2 3 Energy Gun 3 | 1 . . . . . 2 Energy Cannon 1 | . 1 . . . . . Ballistic Gun 1 | . . . . . . 1 Ballistic Cannon 1 | . . 1 . . . . Launcher 3 | . 1 . . . 2 . Special Weapon 1 | . . 1 . . . . Impact Weapon . | . . . . . . . Slashing Weapon . | . . . . . . . Piercing Weapon . | . . . . . . . Special Melee Weapon . | . . . . . . . Unidentified Prototypes 1 | . . . . . . 1 Parts Lost 26 | . 3 . . . 6 17 Power 8 | . 1 . . . 2 5 Propulsion 9 | . . . . . 3 6 Utility 2 | . 1 . . . . 1 Weapon 7 | . 1 . . . 1 5 Highest Loss Streak 6 | . 2 . . . 3 6 To Critical Strikes . | . . . . . . . Average Backups 4 | . 3 4 5 5 4 4 Power . | . . . . . . . Propulsion . | . . 1 1 1 . . Utility 2 | . 2 2 3 3 2 2 Weapon . | . . . 1 1 1 1 Tool/Special . | . . . . . . . Unused Backups 5 | . 1 2 . . . 2 Power 1 | . . 1 . . . . Propulsion 1 | . . 1 . . . . Utility 3 | . 1 . . . . 2 Weapon . | . . . . . . . Tool/Special . | . . . . . . . Average Slot Usage (%) 86 | . 80 99 100 100 85 72 Engine 10 | . 13 14 14 14 3 8 Core 2 | . . . . . 9 2 Leg 1 | . . . . . . 5 Wheel 4 | . 15 1 . . 3 4 Flight 13 | . . 26 28 28 16 2 Device 13 | . 11 14 14 14 18 13 Processor 16 | . 13 14 14 14 17 20 Energy Gun 10 | . 14 14 14 14 6 4 Energy Cannon 4 | . 10 8 . . . . Ballistic Cannon 1 | . . . . . 7 1 Launcher 1 | . 2 . . . 1 3 Special Weapon 3 | . . 4 14 14 1 . Peak Build Rating 29 | 3 9 9 8 8 28 29 Average Rating 12 | 2 7 8 8 8 19 16 On Entrance 7 | . 3 9 8 8 8 18 Avg Prop Armor Cover (%) 12 | . . . . . 3 17 Naked Turns . | . . . . . . . Heaviest Build 21 | 4 11 11 8 8 16 21 Greatest Support 34 | 10 20 20 8 8 18 34 Greatest Overweight (x) 4 | . 1 2 . . 2 4 Average Overweight (x) . | . . . . . . 1 Largest Inventory Capacity 5 | 5 5 5 5 5 5 5 Average Capacity 5 | 5 5 5 5 5 5 5 Most Carried 5 | 1 5 5 5 5 5 5 Average Carried 4 | . 3 4 5 5 4 4 Final Capacity 5 | 5 5 5 5 5 5 5 Final Carried 5 | . 4 5 5 5 5 5 Class Distribution -------------------- 46% | Scavenger-Mutant 30% | Mutant 13% | Skirmisher 6% | Scout 3% | Scavenger-Skirmisher Dominant Class ---------------- Mutant | -10/Materials Scavenger-Mutant | -10/Mines Scavenger-Mutant | -10/Exiles Scavenger-Mutant | -9/Mines Skirmisher | -8/Materials Mutant | -8/Storage Resources | -11 -10 -10 -10 -9 -8 -8 ----------- Run | Yrd Mat Min Exi Min Mat Sto Matter Collected 1240 | 200 190 33 . . 283 534 Remotely . | . . . . . . . Salvage Created 1535 | . 456 72 . . 260 747 Parts 104 | . 39 7 . . 16 42 Haulers Intercepted . | . . . . . . . Recyclers Shooed 4 | . 2 . . . 1 1 Parts Field Recycled . | . . . . . . . Retrieved Matter . | . . . . . . . Parts Self-Destructed . | . . . . . . . Prevented . | . . . . . . . Parts Restored . | . . . . . . . Kills | -11 -10 -10 -10 -9 -8 -8 ------- Run | Yrd Mat Min Exi Min Mat Sto Combat Hostiles Destroyed 34 | . 12 3 . . 8 11 Guns 13 | . 2 3 . . 3 5 Cannons 9 | . 4 . . . 2 3 AOE 11 | . 6 . . . 3 2 Classes Destroyed 11 | . 4 1 . . 4 2 Worker 4 | . . 1 . . 2 1 Builder 7 | . 3 . . . 1 3 Tunneler 1 | . . . . . 1 . Recycler 4 | . 1 . . . . 3 Operator 1 | . . . . . 1 . Watcher 1 | . . . . . 1 . Swarmer 9 | . 3 3 . . 3 . Grunt 19 | . 9 . . . 4 6 Brawler 1 | . . . . . . 1 Sentry 4 | . . . . . 1 3 Hunter 1 | . . . . . . 1 Best Kill Streak 9 | . 6 3 . . 4 9 Combat Bots Only 6 | . 6 3 . . 3 4 Max Kills in Single Turn 3 | . 2 1 . . 2 3 Gunslinging . | . . . . . . . Exploded 2 | . 2 . . . 1 1 Melee . | . . . . . . . Uniques/NPCs Destroyed . | . . . . . . . Combat | -11 -10 -10 -10 -9 -8 -8 -------- Run | Yrd Mat Min Exi Min Mat Sto Hostile Shots Fired 278 | . 51 8 . . 68 151 Missed 94 | . 17 3 . . 26 48 Hits 184 | . 34 5 . . 42 103 Projectile 184 | . 34 5 . . 42 103 Critical Strikes 7 | . . . . . 1 6 Damage Taken 2743 | . 371 41 . . 615 1716 Core 690 | . 130 10 . . 102 448 Absorbed by Shields . | . . . . . . . Core Remaining (%) 72 | 100 . . . 44 . . Volleys Fired 194 | . 48 20 . . 53 73 Largest 2 | . 2 2 . . 2 2 Hottest 156 | . 108 108 . . 76 156 Shots Fired 272 | . 82 21 . . 86 83 Gun 144 | . 45 7 . . 29 63 Cannon 103 | . 32 8 . . 52 11 Launcher 18 | . 5 . . . 5 8 Special 7 | . . 6 . . . 1 Kinetic 94 | . . . . . 52 42 Thermal 160 | . 77 21 . . 29 33 Explosive 18 | . 5 . . . 5 8 Electromagnetic . | . . . . . . . Robot Hit Streak 10 | . 8 2 . . 9 10 Robot Miss Streak 7 | . 4 2 . . 7 4 Penetration Max 1 | . . . . . . 1 Secondary Targets . | . . . . . . . Shots Hit Robots 142 | . 44 5 . . 43 50 Core Hits 82 | . 27 4 . . 24 27 Critical Kills . | . . . . . . . Critical Parts Destroyed . | . . . . . . . Critical Strikes 1 | . . . . . . 1 Burn 1 | . . . . . . 1 Melee Attacks . | . . . . . . . Impact . | . . . . . . . Slashing . | . . . . . . . Piercing . | . . . . . . . Sneak Attacks . | . . . . . . . Combat Hostiles . | . . . . . . . Follow-up Attacks . | . . . . . . . Damage Inflicted 3304 | . 969 88 . . 1013 1234 Guns 1164 | . 305 43 . . 168 648 Cannons 914 | . 327 41 . . 417 129 Explosions 1195 | . 337 . . . 425 433 Melee . | . . . . . . . Ramming 7 | . . 4 . . 3 . Kinetic 943 | . . . . . 417 526 Thermal 1159 | . 632 84 . . 168 275 Explosive 1195 | . 337 . . . 425 433 Electromagnetic . | . . . . . . . Impact . | . . . . . . . Slashing . | . . . . . . . Piercing . | . . . . . . . Highest Corruption 2 | . . . . . 1 2 Average Corruption 1 | . . . . . 1 1 Corruption Purged . | . . . . . . . Corruption Blocked . | . . . . . . . Effects 9 | . . . . . 2 7 Message Errors 2 | . . . . . . 2 Matter Fused 2 | . . . . . 1 1 Heat Flow Errors 1 | . . . . . . 1 Energy Discharges 3 | . . . . . 1 2 Data Loss (minor) 1 | . . . . . . 1 Overload Shots . | . . . . . . . Overflow Damage 67 | . . . . . 67 . Projectiles 12 | . . . . . 12 . Explosions 55 | . . . . . 55 . Melee . | . . . . . . . Knockbacks 4 | . . . . . 4 . Impact . | . . . . . . . Kinetic 4 | . . . . . 4 . Secondary . | . . . . . . . Self-Inflicted Damage 78 | . . 2 . . 1 75 Shots 3 | . . . . . . 3 Rammed 2 | . . 1 . . 1 . Targets Rammed 2 | . . 1 . . 1 . Kicked . | . . . . . . . Crushed . | . . . . . . . Highest Temperature 348 | . 348 60 . . 28 280 Average Temperature 96 | . 114 24 . . 11 97 Received Heat Transfer 1482 | . 204 . . . 270 1008 Effects 1 | . 1 . . . . . Matter Decay 1 | . 1 . . . . . Siege Activations . | . . . . . . . Martial Activations . | . . . . . . . Shielding Activations . | . . . . . . . Robots Disrupted . | . . . . . . . Combat Hostiles . | . . . . . . . Robots Corrupted . | . . . . . . . Combat Hostiles . | . . . . . . . Parts Fried . | . . . . . . . Impact Corruptions . | . . . . . . . Robots Melted 1 | . . . . . . 1 Combat Hostiles 1 | . . . . . . 1 Parts Melted 5 | . 2 1 . . . 2 Heat Transferred 2594 | . 1292 174 . . 375 753 Parts Sabotaged . | . . . . . . . Parts Stolen . | . . . . . . . Parts Stripped . | . . . . . . . Power Chain Reactions . | . . . . . . . Alert | -11 -10 -10 -10 -9 -8 -8 ------- Run | Yrd Mat Min Exi Min Mat Sto Maximum Alert Level 1 | . . . . . 1 1 Low Security (%) 88 | 100 100 100 . 100 99 59 Level 1 11 | . . . . . . 40 Level 2 . | . . . . . . . Level 3 . | . . . . . . . Level 4 . | . . . . . . . Level 5 . | . . . . . . . High Security . | . . . . . . . Max Security . | . . . . . . . Peak Influence 242 | . 182 128 . . 199 242 Initial 65 | . . 58 . . . 65 Average 111 | . 128 38 . . 144 158 Influence Increases 1194 | . 332 78 . . 356 428 Destroy 0b10 Robot/C 680 | . 240 60 . . 160 220 Destroy 0b10 Robot/NC 90 | . 20 5 . . 30 35 Destroy Leader 152 | . 40 10 . . 32 70 Successful Hack 52 | . . . . . 14 38 Disable Machine 135 | . 15 . . . 105 15 Destroy Structure 85 | . 17 3 . . 15 50 Influence Decreases 1188 | . 180 230 . . 200 578 Entered New Map 185 | . . 94 . . . 91 Time Decay 620 | . 150 136 . . 140 194 Lost Part 260 | . 30 . . . 60 170 Purge Threat 123 | . . . . . . 123 Squads Dispatched 9 | . 3 . . . 2 4 Investigation 8 | . 3 . . . 1 4 Extermination . | . . . . . . . Reinforcement 1 | . . . . . 1 . Assault . | . . . . . . . Garrison . | . . . . . . . Intercept . | . . . . . . . Searches Triggered . | . . . . . . . Construction Impeded . | . . . . . . . Haulers Reinforced . | . . . . . . . Active Scanning Responses . | . . . . . . . Cargo Convoy Interrupts . | . . . . . . . Stealth | -11 -10 -10 -10 -9 -8 -8 --------- Run | Yrd Mat Min Exi Min Mat Sto Distress Signals 1 | . . . . . . 1 Communications Jammed . | . . . . . . . Distress Signals . | . . . . . . . Times Spotted 42 | . 12 2 . . 11 17 Peak Tracking Total 7 | . 5 1 . . 4 7 Tactical Retreats . | . . . . . . . Traps | -11 -10 -10 -10 -9 -8 -8 ------- Run | Yrd Mat Min Exi Min Mat Sto Traps Triggered 3 | . 1 . . . 1 1 Indirectly . | . . . . . . . Trap Hack Attempts . | . . . . . . . Triggered . | . . . . . . . Disarmed . | . . . . . . . Reprogrammed . | . . . . . . . Reused . | . . . . . . . Traps Extracted . | . . . . . . . Installed . | . . . . . . . Triggered . | . . . . . . . Machines | -11 -10 -10 -10 -9 -8 -8 ---------- Run | Yrd Mat Min Exi Min Mat Sto Machines Disabled 9 | . 1 . . . 7 1 Max in Single Turn 2 | . 1 . . . 2 1 Machines Repaired . | . . . . . . . Machines Dismantled . | . . . . . . . Machines Sabotaged . | . . . . . . . Overloaded Fab Kills . | . . . . . . . Hacking | -11 -10 -10 -10 -9 -8 -8 --------- Run | Yrd Mat Min Exi Min Mat Sto Machines Accessed 14 | . 2 . . . 4 8 Terminals 10 | . 1 . . . 3 6 Fabricators . | . . . . . . . Repair Stations 1 | . . . . . . 1 Recycling Units 3 | . 1 . . . 1 1 Scanalyzers . | . . . . . . . Garrison Access . | . . . . . . . Total Hacks 49 | . 10 . . . 14 25 Successful 21 | . 4 . . . 8 9 Failed 28 | . 6 . . . 6 16 Catastrophic 6 | . 1 . . . . 5 Database Lockouts . | . . . . . . . Manual 16 | . . . . . 7 9 Terminals 39 | . 7 . . . 11 21 Fabricators . | . . . . . . . Repair Stations 3 | . . . . . . 3 Recycling Units 7 | . 3 . . . 3 1 Scanalyzers . | . . . . . . . Garrison Access . | . . . . . . . Terminal Hacks 17 | . 3 . . . 6 8 Record 4 | . 1 . . . 1 2 Prototype ID Bank 2 | . 1 . . . 1 . Open Door 2 | . . . . . . 2 Branch Access Points 1 | . . . . . . 1 Terminal Index 2 | . . . . . 1 1 Scanalyzer Index 1 | . . . . . 1 . Unreport Threat 1 | . . . . . . 1 Zone Layout 4 | . 1 . . . 2 1 Fabricator Hacks . | . . . . . . . Repair Station Hacks . | . . . . . . . Recycling Unit Hacks 4 | . 1 . . . 2 1 Report Inventory 1 | . . . . . 1 . Retrieve Components 3 | . 1 . . . 1 1 Scanalyzer . | . . . . . . . Garrison Access Hacks . | . . . . . . . Unauthorized Hacks . | . . . . . . . Terminals . | . . . . . . . Fabricators . | . . . . . . . Repair Stations . | . . . . . . . Recycling Units . | . . . . . . . Scanalyzers . | . . . . . . . Garrison Access . | . . . . . . . Data Cores Recovered . | . . . . . . . Used . | . . . . . . . Hacking Detections 11 | . 2 . . . 3 6 Full Trace Events 8 | . 2 . . . 1 5 Feedback Events 1 | . . . . . . 1 Corruption 1 | . . . . . . 1 Feedback Blocked . | . . . . . . . Robot Schematics Acquired . | . . . . . . . Robots Built . | . . . . . . . Authchips . | . . . . . . . Time . | . . . . . . . Total Robot Build Rating . | . . . . . . . Part Schematics Acquired . | . . . . . . . Parts Built . | . . . . . . . Authchips . | . . . . . . . Time . | . . . . . . . Total Part Build Rating . | . . . . . . . Part Studies Acquired . | . . . . . . . Parts Repaired . | . . . . . . . Time . | . . . . . . . Parts Recycled . | . . . . . . . Recycled Matter . | . . . . . . . Retrieved Matter . | . . . . . . . Retrieved Components 14 | . 2 . . . 3 9 Parts Scanalyzed . | . . . . . . . Part Schematics Acquired . | . . . . . . . Parts Damaged . | . . . . . . . Bothacking | -11 -10 -10 -10 -9 -8 -8 ------------ Run | Yrd Mat Min Exi Min Mat Sto Used RIF Installer . | . . . . . . . Robots Hacked . | . . . . . . . Non-combat . | . . . . . . . Combat . | . . . . . . . Robot Hacks Applied . | . . . . . . . Relay Couplers Released . | . . . . . . . Fabnet Peak Effective % . | . . . . . . . Robots Rewired . | . . . . . . . Allies Hacked . | . . . . . . . Hacks Repelled . | . . . . . . . Allies | -11 -10 -10 -10 -9 -8 -8 -------- Run | Yrd Mat Min Exi Min Mat Sto Total Allies 2 | . . 2 . . . . Largest Group 2 | . . 2 2 . . . Highest-Rated Group 45 | . . 45 45 . . . Highest-Rated Ally 31 | . . 31 31 . . . Total Orders . | . . . . . . . Ally Attacks . | . . . . . . . Total Damage . | . . . . . . . Kills . | . . . . . . . Allies Corrupted . | . . . . . . . Allies Melted . | . . . . . . . Intel | -11 -10 -10 -10 -9 -8 -8 ------- Run | Yrd Mat Min Exi Min Mat Sto Active Infowar (turns) 1675 | . 309 450 163 4 313 436 Optics 1675 | . 309 450 163 4 313 436 Sensors 833 | . 210 . . . 313 310 Robot Analysis Total . | . . . . . . . Derelict Logs Recovered 1 | . . 1 . . . . Drone Launches . | . . . . . . . Drone Recoveries . | . . . . . . . Exploration | -11 -10 -10 -10 -9 -8 -8 ------------- Run | Yrd Mat Min Exi Min Mat Sto Turns Passed 1719 | 30 323 450 163 4 313 436 Spaces Moved 972 | 34 197 255 42 10 228 206 Core 53 | 5 . . . . . 48 Treads 6 | . . . . . . 6 Legs 33 | . . . . . . 33 Wheels 351 | 29 197 1 . . 63 61 Hover . | . . . . . . . Flight 529 | . . 254 42 10 165 58 Fastest Speed 32 | 50 80 37 37 37 32 50 Average Speed 87 | 75 83 101 37 37 58 119 Slowest Speed 250 | 80 95 200 37 37 200 250 Overloaded Moves . | . . . . . . . Propulsion Burnouts . | . . . . . . . Robots Hopped 4 | . . 1 . . . 3 Potential Cave-ins . | . . . . . . . Cave-ins Triggered . | . . . . . . . Exploration Rate (%) 19 | 2 32 28 9 11 30 26 Regions Visited 6 Branch Regions 4 Pre-discovered Areas . | . . . . . . . Known Exits Taken 2 | . . 1 . . 1 . Unknown Exits Taken 4 | 1 1 . 1 1 . . Scrap Searched 1 | . . 1 . . . . Spaces Dug 4 | . . 4 . . . . Terrain Destroyed 101 | . 32 4 . . 19 46 Melee . | . . . . . . . Projectile 7 | . 1 4 . . 1 1 AOE 94 | . 31 . . . 18 45 Terrain Rammed . | . . . . . . . Walls Destroyed . | . . . . . . . Machines Disabled . | . . . . . . . Actions | -11 -10 -10 -10 -9 -8 -8 --------- Run | Yrd Mat Min Exi Min Mat Sto Total 1537 | 37 271 411 188 9 316 305 Wait 275 | . 4 124 147 . . . Move 959 | 33 196 252 41 9 227 201 Hop 3 | . . 1 . . . 2 Pick Up 20 | 1 9 3 . . 3 4 Fast Attach 29 | 2 5 3 . . 5 14 Attach 9 | 1 2 . . . 4 2 Detach 2 | . . 1 . . . 1 Swap 20 | . 2 1 . . 15 2 Drop 24 | . 5 5 . . 8 6 Fire 194 | . 48 20 . . 53 73 Melee . | . . . . . . . Ram 2 | . . 1 . . 1 . Kick . | . . . . . . . Crush . | . . . . . . . Escape Stasis . | . . . . . . . Rewire . | . . . . . . . Trap . | . . . . . . . Miscellaneous . | . . . . . . . Route ------- -11/Scrapyard -10/Materials (discovered 2 exits: [*Min x2]) -10/Mines (discovered 2 exits: *Exi / [*Sub]) -10/Exiles -9/Mines -8/Materials -8/Storage (discovered 1 exit: Rec) History --------- Turn | Location | Event 9 | -11/Scrapyard | Discovered new exit (range 15) 31 | -11/Scrapyard | Entered Materials 169 | -10/Materials | Discovered new exit (range 6) 215 | -10/Materials | Discovered new exit (range 15) 268 | -10/Materials | Core integrity fell below 50% 354 | -10/Materials | Entered Mines 414 | -10/Mines | Identified exit to Exiles 585 | -10/Mines | Build established: Scavenger-Mutant 614 | -10/Mines | Discovered new exit (range 15) 629 | -10/Mines | Found DCF Scrap (13 items) 804 | -10/Mines | Entered Exiles 804 | -10/Exiles | Accompanied by 2 allies 811 | -10/Exiles | Discovered new exit (range 14) 834 | -10/Exiles | Led the pair of lost Derelicts to a safe place 967 | -10/Exiles | Entered Mines 969 | -9/Mines | Discovered new exit (range 5) 970 | -9/Mines | Assembled infested the area 971 | -9/Mines | Entered Materials 971 | -8/Materials | Evolved 4 slots: Power x1, Propulsion x1, Utility x2 1148 | -8/Materials | Lost 3 parts (1p2n) 1225 | -8/Materials | Discovered new exit (range 18) 1258 | -8/Materials | Identified exit to Storage 1284 | -8/Materials | Entered Storage 1302 | -8/Storage | Identified exit to Recycling 1472 | -8/Storage | Lost 5 parts (1p2n2w) 1602 | -8/Storage | Core integrity fell below 50% 1674 | -8/Storage | Lost 6 parts (2p1n1u2w) 1702 | -8/Storage | Core integrity fell below 20% 1720 | -8/Storage | Destroyed by G-47 Trooper with Particle Gun Last Messages --------------- Recycling Unit disabled. G-47 Trooper destroyed. Missile Launcher destroyed. System corrupted: Matter fused (-5). U-05 Engineer builds a Wall. Lgt. Nuclear Core destroyed. Titanium Leg destroyed. Acquired 19 matter. U-05 Engineer lays Concrete. Acquired Lgt. Nuclear Core. U-05 Engineer builds a Wall. Titanium Leg destroyed. U-05 Engineer builds a Wall. R-06 Scavenger collects Aluminum Leg. Lgt. Nuclear Core destroyed. Critical hit (Burn: +37). U-05 Engineer lays Concrete. U-05 Engineer builds a Wall. U-05 Engineer builds a Door. U-05 Engineer builds a Wall. Map ----- +----------------------------------------------------+ | | | | | | | | | | | | | | | ??????????????????????????????????????????????? | | ??????????????????????????????????????????????? | | ??????????????????????????????????????????????? | | ??????????????????????????????????????????????? | | ??????????????????????????????????????????????? | | ???#####?##???????????????????????????????????? | | ???# #???????????????????????????????????? | | #??# #???????????? ###+##???###??????????? | | #?# #?###???????? # #####T#"?????????? | | ### #?# #???????" + "?>???????? | | #?# ##?????? # T "?????????? | | # # #?# T#?????? # #######"?????????? | | # ####+#####/##?????? # ####????????????????? | | # #??????#+## #???????????????????? | | #??????# #?####??????????????? | | ######## # !!#??????????????? | | % % g % # !!#??????????????? | | ##T# ##+######% + !!#??????????????? | | #### % ## == #u @#T####??????????????? | | #### # + r g g ###?????????????????? | | #### ## # # # #???????????????????? | | ### ##### " " u# # #???????????????????? | | ### ##??# "R" # !! # #???????????????????? | | ## #??# """ # " ! ##??????????????????? | | ## #??######## "" g #??????????????????? | | ### #?????????# != = #??????????????????? | | #### ##?????????# ##??????????????????? | | ???#%#??????????#### #???????????????????? | | ???# #???????????? ####???????????????????? | | ???# #??????????? " #??????????????????????? | | ???# #??????????# "G" #??????????????????????? | | ???# #??????????# " " #??????????????????????? | | ???# #??????????# #??????????????????????? | | ???# #?????????? #??????????????????????? | | ???# #?????????###+#####??????????????????????? | | ???# #????????????????????????????????????????? | | ??? ????????????????????????????????????????? | | ??? ????????????????????????????????????????? | | ??? ????????????????????????????????????????? | | ???+##????????????????????????????????????????? | | ??????????????????????????????????????????????? | | ??????????????????????????????????????????????? | | ??????????????????????????????????????????????? | +----------------------------------------------------+ Best States ------------- Heat Dissipation 45 Energy Generation 23 Energy Capacity 325 Matter Stores 300 Matter Capacity 300 Sight Range 18 Robot Scan Range 14 Terrain Scan Density 10 Evasion (%) 63 Targeting Accuracy 8 Recoil Reduction 1 Offensive Hacking 10 Item Schematics ----------------- None Robot Schematics ------------------ None Fabricated ------------ Nothing Repaired ---------- Nothing Studied --------- None Alien Tech Used ----------------- None Achievements -------------- Spot Them First root@ Challenges ------------ None Game ------ Seed LinearJunkBay Manual? 0 Play Time 00:39:57 Cumulative 9.2 hours Start 2026.07.24 @ 00:36:05 End 2026.07.24 @ 01:16:08 Sessions 1 Manual Loads 0 Difficulty Rogue Special Mode None Game No. 26 Rogue 26 Adventurer 0 Explorer 0 Win Type - Total 0 Types 0/0/0/0/0/0/0/0/0/0 Lore% 4 Gallery% 12 Achievement% 10 Wizard Run 0 Options --------- Layout 1 ASCII 0 Keyboard 0 Movement Mouse Keybinds 0 Fullscreen 1 Font 32/SmallcapsGlow Map View 50x35 Zoom Use 0% Tactical HUD 0 Map Filters NONE Filters NONE Steam 1 RUN: 510e8e6e-12e4-4eac-9376-a6bbdd91f63f